Cogmind - Beta 13 @@@ ROGUE MODE // 2024.05.29 @ 19:40:36 Player: archydragon Result: Destroyed by G-47 Trooper with Particle Gun Performance ------------- Evolutions (2) 1000 Regions Visited (3) 600 Robots Destroyed (39) 195 Value Destroyed (1227) 1227 Prototype IDs (0) 0 Alien Tech Used (0) 0 Bonus (0) 0 TOTAL SCORE: 3022 Bonus ------- None Cogmind --------- Core Integrity 0/550 Matter 300/300 Energy 100/100 System Corruption 1% Temperature Cool (9) Movement Core (1400) Ox27 Location -8/Materials Parts ------- > --- POWER (1) -------- (None) > --- PROPULSION (3) --- (None) > --- UTILITY (5) ------ Huge Storage Unit Visual Processing Unit Recoil Stabilizer > --- WEAPON (2) ------- Scythe > --- INVENTORY (25) --- Heat Sink Improved Heat Sink Assault Rifle High-powered Shotgun Rocket Launcher Hammer Peak State ------------ > --- POWER ------------ Nuclear Core > --- PROPULSION ------- Aluminum Leg Titanium Leg Titanium Leg > --- UTILITY ---------- Huge Storage Unit Visual Processing Unit Melee Analysis Suite Reaction Control System Improved Propulsion Shielding > --- WEAPON ----------- Katana > --- INVENTORY -------- Nuclear Core Aluminum Leg Aluminum Leg Aluminum Leg Heat Sink Terrain Scanner Assault Rifle Rocket Launcher Katana [Rating: 26] Favorites ----------- Power Ion Engine Engine Ion Engine Power Core Nuclear Core Propulsion Titanium Leg Leg Titanium Leg Utility Visual Processing Unit Device Terrain Scanner Storage Small Storage Unit Processor Visual Processing Unit Protection Core Shielding Weapon Katana Energy Gun Medium Laser Ballistic Gun High-powered Shotgun Special Weapon Mining Laser Slashing Weapon Katana Build | -11 -10 -9 -8 ------- Run | Yrd Mat Mat Mat Slots Evolved 4 | . . 2 2 Power . | . . . . Propulsion 1 | . . . 1 Utility 3 | . . 2 1 Weapon . | . . . . Parts Attached 45 | 5 5 12 23 Power 7 | 1 1 2 3 Engine 5 | 1 1 2 1 Core 2 | . . . 2 Reactor . | . . . . Propulsion 12 | 2 . 3 7 Treads . | . . . . Leg 12 | 2 . 3 7 Wheel . | . . . . Hover . | . . . . Flight . | . . . . Utility 16 | 1 2 4 9 Device 7 | . 2 1 4 Storage 2 | 1 . . 1 Processor 2 | . . 2 . Hackware . | . . . . Protection 5 | . . 1 4 Artifact . | . . . . Weapon 10 | 1 2 3 4 Energy Gun 2 | 1 1 . . Energy Cannon . | . . . . Ballistic Gun 1 | . . . 1 Ballistic Cannon . | . . . . Launcher . | . . . . Special Weapon 2 | . 1 1 . Impact Weapon . | . . . . Slashing Weapon 5 | . . 2 3 Piercing Weapon . | . . . . Special Melee Weapon . | . . . . Unidentified Prototypes . | . . . . Parts Lost 32 | . 2 8 22 Power 6 | . . 2 4 Propulsion 11 | . . 2 9 Utility 10 | . 1 3 6 Weapon 5 | . 1 1 3 Highest Loss Streak 9 | . 1 6 9 To Critical Strikes . | . . . . Average Slot Usage (%) 84 | . 92 81 81 Engine 7 | . 14 11 1 Core 3 | . . . 7 Leg 24 | . 28 21 25 Device 6 | . 11 7 4 Storage 10 | . 14 11 9 Processor 11 | . . 14 16 Protection 4 | . . . 8 Energy Gun 4 | . 19 . . Special Weapon 1 | . 3 2 . Slashing Weapon 7 | . . 11 9 Naked Turns . | . . . . Heaviest Build 94 | 12 15 16 94 Greatest Support 51 | 20 20 34 51 Greatest Overweight (x) 27 | 1 . . 27 Average Overweight (x) . | . . . 1 Largest Inventory Capacity 25 | 8 8 8 25 Average Capacity 15 | 7 8 8 24 Most Carried 10 | 4 8 8 10 Average Carried 6 | 1 6 6 7 Final Capacity 25 | 8 8 8 25 Final Carried 8 | 3 7 8 6 Class Distribution -------------------- 94% | Mutant 5% | Scavenger-Mutant Dominant Class ---------------- Mutant | -10/Materials Mutant | -9/Materials Mutant | -8/Materials Resources | -11 -10 -9 -8 ----------- Run | Yrd Mat Mat Mat Matter Collected 582 | 227 88 110 157 Remotely . | . . . . Salvage Created 1593 | . 165 744 684 Parts 92 | . 6 48 38 Haulers Intercepted . | . . . . Recyclers Shooed 2 | . . 1 1 Parts Field Recycled . | . . . . Retrieved Matter . | . . . . Parts Self-Destructed . | . . . . Prevented . | . . . . Kills | -11 -10 -9 -8 ------- Run | Yrd Mat Mat Mat Combat Hostiles Destroyed 35 | . 3 16 16 Melee 32 | . . 16 16 Guns 3 | . 3 . . Classes Destroyed 8 | . 2 5 1 Recycler 2 | . . 2 . Operator 1 | . . 1 . Watcher 1 | . 1 . . Swarmer 9 | . . 6 3 Grunt 14 | . 3 5 6 Brawler 2 | . . . 2 Duelist 2 | . . 1 1 Sentry 8 | . . 4 4 Best Kill Streak 8 | . 1 8 4 Combat Bots Only 8 | . 1 8 4 Max Kills in Single Turn 1 | . 1 1 1 Gunslinging . | . . . . Exploded . | . . . . Melee 1 | . . 1 1 Uniques/NPCs Destroyed . | . . . . Combat | -11 -10 -9 -8 -------- Run | Yrd Mat Mat Mat Hostile Shots Fired 393 | . 24 148 221 Missed 109 | . 7 41 61 Damage Taken 3857 | . 239 1146 2472 Core 857 | . 29 269 559 Absorbed by Shields . | . . . . Redirected to Shielding 150 | . . . 150 Core Remaining (%) 73 | 100 88 32 . Volleys Fired 36 | . 32 1 3 Largest 1 | . 1 1 1 Hottest 100 | . 50 100 25 Shots Fired 36 | . 32 1 3 Gun 35 | . 32 . 3 Cannon . | . . . . Launcher . | . . . . Special 1 | . . 1 . Kinetic 3 | . . . 3 Thermal 33 | . 32 1 . Explosive . | . . . . Electromagnetic . | . . . . Robot Hit Streak 7 | . 5 . 7 Robot Miss Streak 6 | . 6 . . Penetration Max . | . . . . Secondary Targets . | . . . . Shots Hit Robots 117 | . 17 43 57 Core Hits 45 | . 8 18 19 Critical Kills . | . . . . Critical Parts Destroyed . | . . . . Critical Strikes 7 | . 1 5 1 Burn 1 | . 1 . . Sever 6 | . . 5 1 Melee Attacks 141 | . . 57 84 Impact . | . . . . Slashing 141 | . . 57 84 Piercing . | . . . . Sneak Attacks 5 | . . 4 1 Combat Hostiles . | . . . . Follow-up Attacks 2 | . . . 2 Damage Inflicted 3542 | . 220 1519 1803 Guns 291 | . 210 . 81 Cannons . | . . . . Explosions . | . . . . Melee 3225 | . . 1519 1706 Ramming 26 | . 10 . 16 Kinetic 81 | . . . 81 Thermal 210 | . 210 . . Explosive . | . . . . Electromagnetic . | . . . . Impact . | . . . . Slashing 3225 | . . 1519 1706 Piercing . | . . . . Highest Corruption 4 | . 4 . 1 Average Corruption 2 | . 3 . 1 Corruption Purged . | . . . . Corruption Blocked . | . . . . Effects 15 | . 11 . 4 Message Errors 5 | . 4 . 1 Matter Fused 5 | . 3 . 2 Heat Flow Errors 1 | . 1 . . Energy Discharges 2 | . 1 . 1 Data Loss (minor) 2 | . 2 . . Overload Shots . | . . . . Overflow Damage 158 | . . 52 106 Projectiles . | . . . . Explosions . | . . . . Melee 158 | . . 52 106 Knockbacks . | . . . . Impact . | . . . . Kinetic . | . . . . Secondary . | . . . . Self-Inflicted Damage . | . . . . Shots . | . . . . Rammed . | . . . . Targets Rammed 3 | . 1 . 2 Kicked 3 | . 1 . 2 Crushed . | . . . . Highest Temperature 248 | . 248 8 24 Average Temperature 76 | . 87 5 14 Received Heat Transfer 1578 | . 150 276 1152 Siege Activations . | . . . . Robots Corrupted . | . . . . Combat Hostiles . | . . . . Parts Fried . | . . . . Impact Corruptions . | . . . . Robots Melted . | . . . . Combat Hostiles . | . . . . Parts Melted 3 | . 3 . . Heat Transferred 703 | . 703 . . Parts Sabotaged . | . . . . Parts Stolen . | . . . . Parts Stripped . | . . . . Power Chain Reactions . | . . . . Alert | -11 -10 -9 -8 ------- Run | Yrd Mat Mat Mat Peak Influence 392 | . 67 392 336 Initial 150 | . . 16 150 Average 160 | . 24 194 222 Maximum Alert Level 1 | . . 1 1 Low Security (%) 53 | 100 100 40 34 Level 1 46 | . . 59 65 Level 2 . | . . . . Level 3 . | . . . . Level 4 . | . . . . Level 5 . | . . . . High Security . | . . . . Max Security . | . . . . Squads Dispatched 5 | . 2 2 1 Investigation 2 | . 2 . . Extermination . | . . . . Reinforcement 3 | . . 2 1 Assault . | . . . . Garrison . | . . . . Intercept . | . . . . Searches Triggered . | . . . . Construction Impeded . | . . . . Haulers Reinforced . | . . . . Active Scanning Responses . | . . . . Cargo Convoy Interrupts . | . . . . Stealth | -11 -10 -9 -8 --------- Run | Yrd Mat Mat Mat Distress Signals 7 | . . 3 4 Communications Jammed . | . . . . Distress Signals . | . . . . Times Spotted 71 | . 4 38 29 Peak Tracking Total 9 | . 2 9 6 Tactical Retreats 12 | . . 8 4 Traps | -11 -10 -9 -8 ------- Run | Yrd Mat Mat Mat Traps Triggered 3 | . 2 . 1 Indirectly . | . . . . Trap Hack Attempts . | . . . . Triggered . | . . . . Disarmed . | . . . . Reprogrammed . | . . . . Reused . | . . . . Traps Extracted . | . . . . Installed . | . . . . Triggered . | . . . . Machines | -11 -10 -9 -8 ---------- Run | Yrd Mat Mat Mat Machines Disabled . | . . . . Max in Single Turn . | . . . . Machines Repaired . | . . . . Machines Dismantled . | . . . . Machines Sabotaged . | . . . . Overloaded Fab Kills . | . . . . Hacking | -11 -10 -9 -8 --------- Run | Yrd Mat Mat Mat Machines Accessed 8 | . 2 2 4 Terminals 7 | . 2 2 3 Fabricators . | . . . . Repair Stations . | . . . . Recycling Units 1 | . . . 1 Scanalyzers . | . . . . Garrison Access . | . . . . Total Hacks 22 | . 8 5 9 Successful 11 | . 3 3 5 Failed 11 | . 5 2 4 Catastrophic 1 | . . . 1 Database Lockouts . | . . . . Manual . | . . . . Terminals 21 | . 8 5 8 Fabricators . | . . . . Repair Stations . | . . . . Recycling Units 1 | . . . 1 Scanalyzers . | . . . . Garrison Access . | . . . . Terminal Hacks 10 | . 3 3 4 Record 3 | . 1 2 . Emergency Access Points 1 | . . . 1 Locate Traps 2 | . 1 . 1 Maintenance Status 1 | . . 1 . Hauler Manifests 1 | . . . 1 Zone Layout 2 | . 1 . 1 Fabricator Hacks . | . . . . Repair Station Hacks . | . . . . Recycling Unit Hacks 1 | . . . 1 Report Inventory 1 | . . . 1 Scanalyzer . | . . . . Garrison Access Hacks . | . . . . Unauthorized Hacks . | . . . . Terminals . | . . . . Fabricators . | . . . . Repair Stations . | . . . . Recycling Units . | . . . . Scanalyzers . | . . . . Garrison Access . | . . . . Data Cores Recovered . | . . . . Used . | . . . . Hacking Detections 5 | . 2 . 3 Full Trace Events 2 | . 2 . . Feedback Events . | . . . . Feedback Blocked . | . . . . Robot Schematics Acquired . | . . . . Robots Built . | . . . . Authchips . | . . . . Time . | . . . . Total Robot Build Rating . | . . . . Part Schematics Acquired . | . . . . Parts Built . | . . . . Authchips . | . . . . Time . | . . . . Total Part Build Rating . | . . . . Parts Repaired . | . . . . Time . | . . . . Parts Recycled . | . . . . Recycled Matter . | . . . . Retrieved Matter . | . . . . Retrieved Components . | . . . . Parts Scanalyzed . | . . . . Part Schematics Acquired . | . . . . Parts Damaged . | . . . . Bothacking | -11 -10 -9 -8 ------------ Run | Yrd Mat Mat Mat Used RIF Installer . | . . . . Robots Hacked . | . . . . Non-combat . | . . . . Combat . | . . . . Robot Hacks Applied . | . . . . Relay Couplers Released . | . . . . Fabnet Peak Effective % . | . . . . Robots Rewired . | . . . . Allies Hacked . | . . . . Hacks Repelled . | . . . . Allies | -11 -10 -9 -8 -------- Run | Yrd Mat Mat Mat Total Allies . | . . . . Largest Group . | . . . . Highest-Rated Group . | . . . . Highest-Rated Ally . | . . . . Total Orders . | . . . . Ally Attacks . | . . . . Total Damage . | . . . . Kills . | . . . . Allies Corrupted . | . . . . Allies Melted . | . . . . Intel | -11 -10 -9 -8 ------- Run | Yrd Mat Mat Mat Robot Analysis Total . | . . . . Derelict Logs Recovered . | . . . . Drone Launches . | . . . . Drone Recoveries . | . . . . Exploration | -11 -10 -9 -8 ------------- Run | Yrd Mat Mat Mat Turns Passed 2330 | 74 550 660 1046 Spaces Moved 1136 | 45 392 377 322 Core 4 | 3 . . 1 Treads . | . . . . Legs 1132 | 42 392 377 321 Wheels . | . . . . Hover . | . . . . Flight . | . . . . Fastest Speed 50 | 50 120 120 130 Average Speed 158 | 136 120 126 244 Slowest Speed 1400 | 190 120 130 1400 Overloaded Moves . | . . . . Propulsion Burnouts . | . . . . Robots Hopped . | . . . . Cave-ins Triggered . | . . . . Exploration Rate (%) 30 | 3 48 37 33 Regions Visited 3 Branch Regions . Pre-discovered Areas . | . . . . Known Exits Taken . | . . . . Unknown Exits Taken 3 | 1 1 1 . Scrap Searched . | . . . . Spaces Dug 11 | . . 1 10 Terrain Destroyed 11 | . . 1 10 Melee 10 | . . . 10 Projectile 1 | . . 1 . AOE . | . . . . Terrain Rammed . | . . . . Walls Destroyed . | . . . . Machines Disabled . | . . . . Actions | -11 -10 -9 -8 --------- Run | Yrd Mat Mat Mat Total 1426 | 57 439 475 455 Wait . | . . . . Move 1133 | 44 391 376 322 Hop . | . . . . Pick Up 56 | 8 9 19 20 Fast Attach . | . . . . Attach 37 | 5 4 8 20 Detach . | . . . . Swap 8 | . 1 4 3 Drop 14 | . 1 10 3 Fire 36 | . 32 1 3 Melee 139 | . . 57 82 Ram . | . . . . Kick 3 | . 1 . 2 Crush . | . . . . Escape Stasis . | . . . . Rewire . | . . . . Trap . | . . . . Miscellaneous . | . . . . Route ------- -11/Scrapyard -10/Materials (discovered 2 exits: *Mat / [*Min]) -9/Materials -8/Materials History --------- Turn | Location | Event 26 | -11/Scrapyard | Discovered new exit (range 15) 75 | -11/Scrapyard | Entered Materials 307 | -10/Materials | Build established: Mutant 564 | -10/Materials | Discovered new exit (range 4) 574 | -10/Materials | Discovered new exit (range 16) 625 | -10/Materials | Entered another Materials area 625 | -9/Materials | Evolved 2 slots: Utility x2 884 | -9/Materials | Core integrity fell below 50% 935 | -9/Materials | Lost 6 parts (1p2n2u1w) 946 | -9/Materials | Destroyed 8 combat bots 1274 | -9/Materials | Discovered new exit (range 10) 1285 | -9/Materials | Entered another Materials area 1285 | -8/Materials | Evolved 2 slots: Propulsion x1, Utility x1 1448 | -8/Materials | Lost 4 parts (1p2n1w) 2117 | -8/Materials | Core integrity fell below 50% 2161 | -8/Materials | Lost 4 parts (2n1u1w) 2298 | -8/Materials | Core integrity fell below 20% 2331 | -8/Materials | Destroyed by G-47 Trooper with Particle Gun Last Messages --------------- 02308_ K-01 Serf collects debris. 02315_ Critical hit (Burn: +37). 02315_ K-01 Serf collects debris. 02317_ Lgt. Deuterium Engine destroyed. 02317_ R-06 Scavenger inserts Lgt. Treads into recycling unit. 02318_ Recycling unit begins recycling process. 02319_ Aluminum Leg destroyed. 02319_ Katana destroyed. 02319_ G-47 Trooper destroyed. 02319_ K-01 Serf collects debris. 02320_ HAPV&NP2> GGVX =SM#MVZSB66|4, 02320_ R-06 Scavenger inserts Aluminum Leg into recycling unit. 02321_ Acquired 5 matter. 02322_ K-01 Serf collects debris. 02323_ Critical hit (Burn: +37). 02323_ R-06 Scavenger inserts Lgt. Treads into recycling unit. 02324_ Recycling unit begins recycling process. 02325_ K-01 Serf cleans the Neutrino Reactor. 02326_ R-06 Scavenger inserts Particle Gun into recycling unit. 02329_ K-01 Serf collects debris. Map ----- +----------------------------------------------------+ | ??????????????????????????????????????????????? | | ??????????????????????????????????????????????? | | ??????????????????????????????????????????????? | | ??????????????????????????????????????????????? | | ??????????????????????????????????????????????? | | ??????????????????????????????????????????????? | | ??????????????????????????????????????????????? | | ?????????????????? ???????????????????????????? | | ????????????????# ??????????????????????????? | | ????????????????# ??????????????????????????? | | ????????????????# ??????????????????????????? | | ????????????????# ??????????????????????????? | | ????????????????#% ??????????????????????????? | | ????????????????# ??????????????????????????? | | ????????????????# ??????????????????????????? | | ????????????????+ ??????????????????????????? | | ????????????????? ##????????????????????????? | | ?????????????????# #????????????????????????? | | ?????????????????# #????????????????????????? | | ?????????????????# #????????????????????????? | | ?????????????????# #############????????????? | | ?????############# a ##"""""##"""#????????????? | | ?????# ##""T""##"Y"###??????????? | | ?????# [ % r ^#??????????? | | ?????# t % +??????????? | | ????"" ! """k@""" """ #??????????? | | ????"" """= """ """ #??????????? | | ?????T !! """gg""" """ #??????????? | | ?????" !! #??????????? | | ?????? " " !! #####??????? | | ??????????" # #######? | | ??????????" +? | | ???????????+## t ### #######? | | ?????????????# #?## ##??????? | | ?????????????### #################??# #???????? | | ???????????????# ???????????????????# #???????? | | ???????????????#????????????????????# #???????? | | ????????????????????????????????????# #??###### | | ????????????????????????????????????# #??# # | | ????????????????????????????????????# #??# # | | ????????????????????????????????????# #### ! # | | ????????????????????????????????????# +%% # | | ????????????????????????????????????###### [ # | | ?????????????????????????????????????????# # | | ?????????????????????????????????????????#! # | | ????????????????????????????#????????????# = # | | ?????????????????????????????????????????# %= # | | ?????????????????????#????????????????#####+### | | ??????????????????????????????????????# ## | | ??????????????????????????????????????# """ !## | +----------------------------------------------------+ Best States ------------- Heat Dissipation 41 Energy Generation 14 Energy Capacity 250 Matter Stores 300 Matter Capacity 300 Sight Range 18 Terrain Scan Range 14 Terrain Scan Density 10 Armor Coverage 150 Core Shielding 20 Propulsion Shielding 66 Evasion (%) 55 Melee Accuracy 5 Recoil Reduction 4 Item Schematics ----------------- None Robot Schematics ------------------ None Fabricated ------------ Nothing Alien Tech Used ----------------- None Achievements -------------- None Challenges ------------ None Game ------ Seed DrainedGravityLegs Manual? 0 Play Time 00:35:01 Cumulative 9.7 hours Start 2024.05.29 @ 19:05:25 End 2024.05.29 @ 19:40:36 Sessions 1 Manual Loads 0 Difficulty Rogue Special Mode None Game No. 20 Rogue 20 Adventurer 0 Explorer 0 Win Type - Total 0 Types 0/0/0/0/0/0/0/0/0 Lore% 7 Gallery% 15 Achievement% 12 Wizard Run 0 Options --------- Layout 1 ASCII 0 Keyboard 0 Movement Arrows Keybinds 0 Fullscreen 2 Font 32/Tamsyn Map View 77x35 Zoom Use 0% Tactical HUD 1 Map Filters NONE Filters NONE Steam 1 RUN: 0a62aaf5-498a-492f-a606-2d49945aab69